{"text_format":"2","workbook":"xlsx","n_sheets":1,"sheets":["Noviembre 2024"],"not_rendered":{"charts":0,"images":2,"macros":0,"external_links":0,"defined_names":0,"comments":0,"pivot_tables":0},"unopened":[],"bounds":{"document_bytes":16777216,"sheet_cells":100000,"run_cost":"one","rows_first":2000,"rows_last":500,"rows_between":2000,"halvings":0,"cell_chars":16384,"cell_head_chars":4096},"cells_cut":0,"cells_raw":0,"read":"whole","date_system":"1900"}

{"sheet":"Noviembre 2024","index":0,"n_rows":22,"n_cols":15,"rows_kept":22,"cut":false,"hidden":false,"merged":[]}
[]
[]
[]
[]
[null,null,"     Emprendedores y empresarios capacitados por el FOJAL de otras entidades del País."]
[]
[]
[]
[null,"ESTADO","TOTAL DE CAPACITACIONES",null,"ESTADO","MUJER","HOMBRE","TOTAL DE CAPACITACIONES",null,"ESTADO","PERFIL DE IDEACIÓN","PERFIL DE PREINCUBACIÓN","PERFIL ACELERACIÓN INSTITUCIONAL","PERFIL DE INNOVACIÓN Y ALTO IMPACTO","TOTAL DE CAPACITACIONES"]
[null,"CIUDAD DE MÉXICO",15,null,"CIUDAD DE MÉXICO",14,1,{"$f":"SUM(F10:G10)","v":15},null,"CIUDAD DE MÉXICO",14,1,null,null,{"$f":"SUM(K10:N10)","v":15}]
[null,"COLIMA",12,null,"COLIMA",null,12,{"$f":"SUM(F11:G11)","v":12},null,"COLIMA",null,12,null,null,{"$f":"SUM(K11:N11)","v":12}]
[null,"ESTADO DE MÉXICO",13,null,"ESTADO DE MÉXICO",null,13,13,null,"ESTADO DE MÉXICO",null,13,null,null,13]
[null,"HIDALGO",110,null,"HIDALGO",110,null,110,null,"HIDALGO",110,null,null,null,110]
[null,"MICHOACÁN DE OCAMPO",30,null,"MICHOACÁN DE OCAMPO",null,30,30,null,"MICHOACÁN DE OCAMPO",8,22,null,null,30]
[null,"NAYARIT",137,null,"NAYARIT",26,111,137,null,"NAYARIT",137,null,null,null,137]
[null,"NUEVO LEÓN",13,null,"NUEVO LEÓN",null,13,13,null,"NUEVO LEÓN",13,null,null,null,13]
[null,"QUINTANA ROO",8,null,"QUINTANA ROO",null,8,8,null,"QUINTANA ROO",null,8,null,null,8]
[null,"SINALOA",50,null,"SINALOA",null,50,50,null,"SINALOA",26,24,null,null,50]
[null,"SONORA",13,null,"SONORA",13,null,13,null,"SONORA",13,null,null,null,13]
[null,"TAMAULIPAS",110,null,"TAMAULIPAS",110,null,110,null,"TAMAULIPAS",110,null,null,null,110]
[null,"ZACATECAS",12,null,"ZACATECAS",null,12,12,null,"ZACATECAS",null,12,null,null,12]
[null,"TOTAL",{"$f":"SUM(C10:C21)","v":523},null,"TOTAL",{"$f":"SUM(F10:F21)","v":273},{"$f":"SUM(G10:G21)","v":250},{"$f":"SUM(H10:H21)","v":523},null,"TOTAL",{"$f":"SUM(K10:K21)","v":431},{"$f":"SUM(L10:L21)","v":92},{"$f":"SUM(M10:M21)","v":0},{"$f":"SUM(N10:N21)","v":0},{"$f":"SUM(O10:O21)","v":523}]